{"text_format":"3","workbook":"xlsx","n_sheets":4,"sheets":["Yhteenveto","Varat","Velat","Luokat"],"not_rendered":{"defined_names":10},"read":"whole","date_system":"1900"}

{"sheet":"Yhteenveto","index":0,"n_rows":12,"n_cols":4,"rows_kept":12}
[null,"Tase"]
[null,null,{"$f":"\"\"&YEAR(TODAY())-1","v":"2016"},{"$f":"\"\"&YEAR(TODAY())","v":"2017"}]
[null,"Varatyyppi","Edellinen vuosi","Nykyinen vuosi"]
[null,"Nykyiset varat",{"$f":"SUMIFS(Varat[Edellinen vuosi],Varat[Varatyyppi],Koontinäkymä[[#This Row],[Varatyyppi]])+SUMIFS(Velat[Edellinen vuosi],Velat[Velkatyyppi],Koontinäkymä[[#This Row],[Varatyyppi]])","v":600},{"$f":"SUMIFS(Varat[Nykyinen vuosi],Varat[Varatyyppi],Koontinäkymä[[#This Row],[Varatyyppi]])+SUMIFS(Velat[Nykyinen vuosi],Velat[Velkatyyppi],Koontinäkymä[[#This Row],[Varatyyppi]])","v":600}]
[null,"Kiinteät varat",{"$f":"SUMIFS(Varat[Edellinen vuosi],Varat[Varatyyppi],Koontinäkymä[[#This Row],[Varatyyppi]])+SUMIFS(Velat[Edellinen vuosi],Velat[Velkatyyppi],Koontinäkymä[[#This Row],[Varatyyppi]])","v":{"v":-100,"d":"-100 "}},{"$f":"SUMIFS(Varat[Nykyinen vuosi],Varat[Varatyyppi],Koontinäkymä[[#This Row],[Varatyyppi]])+SUMIFS(Velat[Nykyinen vuosi],Velat[Velkatyyppi],Koontinäkymä[[#This Row],[Varatyyppi]])","v":{"v":-85,"d":"-85 "}}]
[null,"Muut varat",{"$f":"SUMIFS(Varat[Edellinen vuosi],Varat[Varatyyppi],Koontinäkymä[[#This Row],[Varatyyppi]])+SUMIFS(Velat[Edellinen vuosi],Velat[Velkatyyppi],Koontinäkymä[[#This Row],[Varatyyppi]])","v":0},{"$f":"SUMIFS(Varat[Nykyinen vuosi],Varat[Varatyyppi],Koontinäkymä[[#This Row],[Varatyyppi]])+SUMIFS(Velat[Nykyinen vuosi],Velat[Velkatyyppi],Koontinäkymä[[#This Row],[Varatyyppi]])","v":0}]
[null,"Nykyiset velat",{"$f":"SUMIFS(Varat[Edellinen vuosi],Varat[Varatyyppi],Koontinäkymä[[#This Row],[Varatyyppi]])+SUMIFS(Velat[Edellinen vuosi],Velat[Velkatyyppi],Koontinäkymä[[#This Row],[Varatyyppi]])","v":500},{"$f":"SUMIFS(Varat[Nykyinen vuosi],Varat[Varatyyppi],Koontinäkymä[[#This Row],[Varatyyppi]])+SUMIFS(Velat[Nykyinen vuosi],Velat[Velkatyyppi],Koontinäkymä[[#This Row],[Varatyyppi]])","v":350}]
[null,"Pitkän aikavälin velat",{"$f":"SUMIFS(Varat[Edellinen vuosi],Varat[Varatyyppi],Koontinäkymä[[#This Row],[Varatyyppi]])+SUMIFS(Velat[Edellinen vuosi],Velat[Velkatyyppi],Koontinäkymä[[#This Row],[Varatyyppi]])","v":0},{"$f":"SUMIFS(Varat[Nykyinen vuosi],Varat[Varatyyppi],Koontinäkymä[[#This Row],[Varatyyppi]])+SUMIFS(Velat[Nykyinen vuosi],Velat[Velkatyyppi],Koontinäkymä[[#This Row],[Varatyyppi]])","v":0}]
[null,"Omistajan pääoma",{"$f":"SUMIFS(Varat[Edellinen vuosi],Varat[Varatyyppi],Koontinäkymä[[#This Row],[Varatyyppi]])+SUMIFS(Velat[Edellinen vuosi],Velat[Velkatyyppi],Koontinäkymä[[#This Row],[Varatyyppi]])","v":0},{"$f":"SUMIFS(Varat[Nykyinen vuosi],Varat[Varatyyppi],Koontinäkymä[[#This Row],[Varatyyppi]])+SUMIFS(Velat[Nykyinen vuosi],Velat[Velkatyyppi],Koontinäkymä[[#This Row],[Varatyyppi]])","v":350}]
[null,"Varat yhteensä",{"$f":"Varat[[#Totals],[Edellinen vuosi]]","v":500},{"$f":"Varat[[#Totals],[Nykyinen vuosi]]","v":515}]
[null,"Velat yhteensä ja oma pääoma",{"$f":"Velat[[#Totals],[Edellinen vuosi]]","v":500},{"$f":"Velat[[#Totals],[Nykyinen vuosi]]","v":700}]
[null,"Saldo",{"$f":"C10-C11","v":0},{"$f":"D10-D11","v":{"v":-185,"d":"-185 "}}]

{"sheet":"Varat","index":1,"n_rows":14,"n_cols":5,"rows_kept":14}
[null,"Varat"]
[{"$nulls":3},{"$f":"FY_YEAR","v":"2016"},{"$f":"FY_YEAR_2","v":"2017"}]
[null,"Varatyyppi","Kuvaus","Edellinen vuosi","Nykyinen vuosi"]
[null,"Nykyiset varat","Käteinen",600,600]
[null,"Nykyiset varat","Sijoitukset"]
[null,"Nykyiset varat","Inventaariot"]
[null,"Nykyiset varat","Saatavat"]
[null,"Nykyiset varat","Esimaksetut menot"]
[null,"Kiinteät varat","Omaisuus ja laitteet"]
[null,"Kiinteät varat","Vuokrauskaluston parannukset"]
[null,"Kiinteät varat","Pääoma ja muut sijoitukset"]
[null,"Kiinteät varat","Pienempi kertynyt poisto (negatiivinen arvo)",{"v":-100,"d":"-100 "},{"v":-85,"d":"-85 "}]
[null,"Muut varat","Hyväntekeväisyys"]
[null,"Varat yhteensä",null,{"$f":"SUBTOTAL(109,Varat[Edellinen vuosi])","v":500},{"$f":"SUBTOTAL(109,Varat[Nykyinen vuosi])","v":515}]

{"sheet":"Velat","index":2,"n_rows":12,"n_cols":5,"rows_kept":12}
[null,"Velat"]
[{"$nulls":3},{"$f":"FY_YEAR","v":"2016"},{"$f":"FY_YEAR_2","v":"2017"}]
[null,"Velkatyyppi","Kuvaus","Edellinen vuosi","Nykyinen vuosi"]
[null,"Nykyiset velat","Ostovelat",null,350]
[null,"Nykyiset velat","Kertyneet palkat"]
[null,"Nykyiset velat","Kertynyt korvaus",500]
[null,"Nykyiset velat","Maksettavat tuloverot"]
[null,"Nykyiset velat","Siirtotuotto"]
[null,"Pitkän aikavälin velat","Maksettava asuntolaina"]
[null,"Omistajan pääoma","Pääomasijoitus",null,350]
[null,"Omistajan pääoma","Jakamattomat voitot"]
[null,"Velat yhteensä ja oma pääoma",null,{"$f":"SUBTOTAL(109,Velat[Edellinen vuosi])","v":500},{"$f":"SUBTOTAL(109,Velat[Nykyinen vuosi])","v":700}]

{"sheet":"Luokat","index":3,"n_rows":9,"n_cols":2,"rows_kept":9}
[null,"Luokat"]
[]
[null,"Luokat"]
[null,"Nykyiset varat"]
[null,"Kiinteät varat"]
[null,"Muut varat"]
[null,"Nykyiset velat"]
[null,"Pitkän aikavälin velat"]
[null,"Omistajan pääoma"]